[Event "*** Titled Tuesday Blitz"]
[Site "Chess.com"]
[Date "2019.07.02"]
[Round "3"]
[White "GeorgeTen"]
[Black "Nightlord1"]
[Result "0-1"]
[WhiteElo "2242"]
[BlackElo "2138"]
[TimeControl "180+2"]
[EndTime "13:36:39 PDT"]
[Termination "Nightlord1 won by resignation"]

1. d4 {[%clk 0:03:00.5]} 1... Nf6 {[%clk 0:03:00.6]} 2. c4 {[%clk 0:03:00.8]}
2... e5 {[%clk 0:03:01.8]} 3. dxe5 {[%clk 0:03:00.4]} 3... Ng4 {[%clk
0:03:03.4]} 4. e3 {[%clk 0:03:00.7]} 4... Nxe5 {[%clk 0:03:02.7]} 5. Nh3 {[%clk
0:03:02]} 5... Ng6 {[%clk 0:03:03.7]} 6. g3 {[%clk 0:02:34.1]} 6... Nc6 {[%clk
0:03:03.8]} 7. Bg2 {[%clk 0:02:31]} 7... Bc5 {[%clk 0:02:56]} 8. O-O {[%clk
0:02:31.3]} 8... O-O {[%clk 0:02:55.5]} 9. Nc3 {[%clk 0:02:30.9]} 9... Re8
{[%clk 0:02:35.7]} 10. a3 {[%clk 0:02:31.2]} 10... a5 {[%clk 0:02:34.8]} 11. b3
{[%clk 0:02:31.8]} 11... d6 {[%clk 0:02:32.8]} 12. Bb2 {[%clk 0:02:33.1]} 12...
Nce5 {[%clk 0:02:28]} 13. Nd5 {[%clk 0:02:03.1]} 13... Bg4 {[%clk 0:02:23]} 14.
f3 {[%clk 0:01:54.6]} 14... Bxh3 {[%clk 0:01:58.7]} 15. Bxh3 {[%clk 0:01:54.1]}
15... c6 {[%clk 0:02:00.6]} 16. b4 {[%clk 0:01:53.8]} 16... Ba7 {[%clk
0:01:57.2]} 17. Nc3 {[%clk 0:01:37.1]} 17... Nxc4 {[%clk 0:01:57.5]} 18. Kh1
{[%clk 0:01:38.8]} 18... Nxb2 {[%clk 0:01:47.4]} 19. Qb3 {[%clk 0:01:34.6]}
19... Nd3 {[%clk 0:01:45.1]} 20. Ne4 {[%clk 0:01:36.1]} 20... Nde5 {[%clk
0:01:42]} 21. Rad1 {[%clk 0:01:37.7]} 21... d5 {[%clk 0:01:40]} 22. f4 {[%clk
0:01:39.2]} 22... Nc4 {[%clk 0:01:32]} 23. Ng5 {[%clk 0:01:25.9]} 23... Nxe3
{[%clk 0:01:30]} 0-1

[Event "*** Titled Tuesday Blitz"]
[Site "Chess.com"]
[Date "2019.07.02"]
[Round "3"]
[White "Bagirova"]
[Black "warmoatmeal"]
[Result "1-0"]
[WhiteElo "1909"]
[BlackElo "1806"]
[TimeControl "180+2"]
[EndTime "13:36:58 PDT"]
[Termination "Bagirova won by checkmate"]

1. e4 {[%clk 0:02:58.6]} 1... c5 {[%clk 0:03:00.5]} 2. Nf3 {[%clk 0:02:59.5]}
2... e6 {[%clk 0:03:01]} 3. d4 {[%clk 0:03:00.6]} 3... cxd4 {[%clk 0:03:02]} 4.
Nxd4 {[%clk 0:03:01.9]} 4... a6 {[%clk 0:03:03.2]} 5. a4 {[%clk 0:03:00.6]} 5...
Nf6 {[%clk 0:03:01.8]} 6. Nc3 {[%clk 0:03:01.5]} 6... Bb4 {[%clk 0:03:02.3]} 7.
Bd3 {[%clk 0:03:01.8]} 7... Nc6 {[%clk 0:03:00.6]} 8. Nxc6 {[%clk 0:03:02.2]}
8... dxc6 {[%clk 0:03:00.8]} 9. O-O {[%clk 0:03:03.5]} 9... e5 {[%clk 0:02:58]}
10. Bg5 {[%clk 0:02:56.5]} 10... h6 {[%clk 0:02:58.1]} 11. Bh4 {[%clk
0:02:56.3]} 11... Be7 {[%clk 0:02:56.3]} 12. Bg3 {[%clk 0:02:56.7]} 12... Qc7
{[%clk 0:02:48.6]} 13. Kh1 {[%clk 0:02:53.9]} 13... Nh5 {[%clk 0:02:48.9]} 14.
Qxh5 {[%clk 0:02:49]} 14... Bf6 {[%clk 0:02:45]} 15. f4 {[%clk 0:02:45.4]} 15...
g6 {[%clk 0:02:43.3]} 16. Qf3 {[%clk 0:02:41.5]} 16... Be6 {[%clk 0:02:42.5]}
17. f5 {[%clk 0:02:24]} 17... gxf5 {[%clk 0:02:40.3]} 18. exf5 {[%clk
0:02:20.8]} 18... Bd7 {[%clk 0:02:39.4]} 19. Ne4 {[%clk 0:02:21.9]} 19... Be7
{[%clk 0:02:23.3]} 20. f6 {[%clk 0:02:18.4]} 20... Bf8 {[%clk 0:02:23.5]} 21.
Qh5 {[%clk 0:02:12.9]} 21... O-O-O {[%clk 0:01:50.1]} 22. Bxe5 {[%clk
0:02:11.6]} 22... Qb6 {[%clk 0:01:50.8]} 23. Bg3 {[%clk 0:02:03.5]} 23... Be6
{[%clk 0:01:51.1]} 24. Qe5 {[%clk 0:01:57.4]} 24... h5 {[%clk 0:01:32.4]} 25. a5
{[%clk 0:01:55.9]} 25... Qxa5 {[%clk 0:01:19.3]} 26. Rxa5 {[%clk 0:01:52.3]}
26... Kd7 {[%clk 0:01:17.7]} 27. Nc5+ {[%clk 0:01:41.7]} 27... Bxc5 {[%clk
0:01:17.7]} 28. Rxc5 {[%clk 0:01:40.9]} 28... h4 {[%clk 0:01:17.3]} 29. Qd6+
{[%clk 0:01:41]} 29... Ke8 {[%clk 0:01:17.5]} 30. Qe7# {[%clk 0:01:42.3]} 1-0

[Event "*** Titled Tuesday Blitz"]
[Site "Chess.com"]
[Date "2019.07.02"]
[Round "3"]
[White "TenisMaster"]
[Black "Supernotar"]
[Result "1-0"]
[WhiteElo "2842"]
[BlackElo "2615"]
[TimeControl "180+2"]
[EndTime "13:37:05 PDT"]
[Termination "TenisMaster won by resignation"]

1. e4 {[%clk 0:01:55.3]} 1... c6 {[%clk 0:03:00.9]} 2. Nc3 {[%clk 0:01:55.3]}
2... d5 {[%clk 0:03:02.2]} 3. Nf3 {[%clk 0:01:56.3]} 3... Bg4 {[%clk 0:03:03.3]}
4. h3 {[%clk 0:01:57]} 4... Bxf3 {[%clk 0:03:04.6]} 5. Qxf3 {[%clk 0:01:57.7]}
5... e6 {[%clk 0:03:06]} 6. Qg3 {[%clk 0:01:55.3]} 6... Nf6 {[%clk 0:03:04.1]}
7. d3 {[%clk 0:01:54.7]} 7... Qb6 {[%clk 0:02:57.8]} 8. Be2 {[%clk 0:01:50.9]}
8... Nbd7 {[%clk 0:02:29.6]} 9. O-O {[%clk 0:01:50.4]} 9... g6 {[%clk
0:02:11.3]} 10. Kh1 {[%clk 0:01:50.1]} 10... Bg7 {[%clk 0:02:11.1]} 11. f4
{[%clk 0:01:50.7]} 11... O-O {[%clk 0:02:08.3]} 12. f5 {[%clk 0:01:48.1]} 12...
dxe4 {[%clk 0:02:04.8]} 13. dxe4 {[%clk 0:01:48.6]} 13... exf5 {[%clk
0:02:04.7]} 14. exf5 {[%clk 0:01:49]} 14... Rae8 {[%clk 0:02:03.5]} 15. Bc4
{[%clk 0:01:44.7]} 15... Ne5 {[%clk 0:02:00.4]} 16. Bb3 {[%clk 0:01:44.2]} 16...
Nh5 {[%clk 0:01:55.7]} 17. Qh4 {[%clk 0:01:42.2]} 17... Bf6 {[%clk 0:01:37.4]}
18. Bg5 {[%clk 0:01:42.1]} 18... Qd8 {[%clk 0:01:36.2]} 19. Bxf6 {[%clk
0:01:30.9]} 19... Qxf6 {[%clk 0:01:29]} 20. Qxf6 {[%clk 0:01:31.4]} 20... Nxf6
{[%clk 0:01:29.9]} 21. fxg6 {[%clk 0:01:33.3]} 21... Kg7 {[%clk 0:01:28.8]} 22.
gxh7 {[%clk 0:01:26.5]} 22... Nxh7 {[%clk 0:01:28.1]} 23. Ne4 {[%clk 0:01:23.6]}
23... Ng6 {[%clk 0:01:16.6]} 24. Nd6 {[%clk 0:01:23.4]} 24... Re7 {[%clk
0:01:17.6]} 25. Nf5+ {[%clk 0:01:23.8]} 25... Kf6 {[%clk 0:01:17.4]} 26. Nxe7+
{[%clk 0:01:22.9]} 26... Kxe7 {[%clk 0:01:18.6]} 27. Rae1+ {[%clk 0:01:23.5]}
27... Kd6 {[%clk 0:01:18.1]} 28. Rxf7 {[%clk 0:01:23.2]} 28... Rh8 {[%clk
0:01:15.3]} 29. Re6+ {[%clk 0:01:21.2]} 1-0

[Event "*** Titled Tuesday Blitz"]
[Site "Chess.com"]
[Date "2019.07.02"]
[Round "3"]
[White "Sanyura"]
[Black "johnathan113"]
[Result "0-1"]
[WhiteElo "2441"]
[BlackElo "2686"]
[TimeControl "180+2"]
[EndTime "13:37:09 PDT"]
[Termination "johnathan113 won by resignation"]

1. Nf3 {[%clk 0:03:01.9]} 1... Nf6 {[%clk 0:03:01.2]} 2. g3 {[%clk 0:03:02.8]}
2... g6 {[%clk 0:03:03.1]} 3. Bg2 {[%clk 0:03:03.9]} 3... Bg7 {[%clk 0:03:05]}
4. O-O {[%clk 0:03:05.6]} 4... O-O {[%clk 0:03:06.6]} 5. d4 {[%clk 0:03:07.3]}
5... d6 {[%clk 0:03:07.5]} 6. b3 {[%clk 0:03:06.4]} 6... e5 {[%clk 0:03:07]} 7.
dxe5 {[%clk 0:03:06.3]} 7... dxe5 {[%clk 0:03:08.9]} 8. Ba3 {[%clk 0:03:02]}
8... Qxd1 {[%clk 0:03:09]} 9. Rxd1 {[%clk 0:03:02.7]} 9... Re8 {[%clk
0:03:10.9]} 10. c4 {[%clk 0:03:02.9]} 10... e4 {[%clk 0:03:09.4]} 11. Nd4 {[%clk
0:03:04.1]} 11... e3 {[%clk 0:03:09.3]} 12. fxe3 {[%clk 0:02:57.1]} 12... Ng4
{[%clk 0:03:09.9]} 13. Nc3 {[%clk 0:02:40.6]} 13... Nxe3 {[%clk 0:03:10.3]} 14.
Ncb5 {[%clk 0:02:41.6]} 14... Nxd1 {[%clk 0:03:03.3]} 15. Rxd1 {[%clk
0:02:42.3]} 15... Na6 {[%clk 0:02:59.2]} 16. c5 {[%clk 0:02:36.5]} 16... Rd8
{[%clk 0:02:54.4]} 17. e3 {[%clk 0:02:34.7]} 17... Bf8 {[%clk 0:02:42.6]} 18.
Rc1 {[%clk 0:02:28.9]} 18... c6 {[%clk 0:02:38.1]} 19. Nd6 {[%clk 0:02:22]}
19... Nxc5 {[%clk 0:02:20.4]} 20. Nxf7 {[%clk 0:00:33]} 20... Rxd4 {[%clk
0:02:11]} 21. exd4 {[%clk 0:00:15]} 21... Nd3 {[%clk 0:02:11.8]} 22. Rf1 {[%clk
0:00:05.1]} 22... Bxa3 {[%clk 0:02:11.7]} 23. d5 {[%clk 0:00:06.1]} 23... Bc5+
{[%clk 0:02:11.3]} 0-1

[Event "*** Titled Tuesday Blitz"]
[Site "Chess.com"]
[Date "2019.07.02"]
[Round "3"]
[White "Rakesh"]
[Black "MarcoRiehle"]
[Result "0-1"]
[WhiteElo "2443"]
[BlackElo "2702"]
[TimeControl "180+2"]
[EndTime "13:37:13 PDT"]
[Termination "MarcoRiehle won on time"]

1. e4 {[%clk 0:03:01.9]} 1... e5 {[%clk 0:03:00.6]} 2. Nf3 {[%clk 0:03:01.3]}
2... Nf6 {[%clk 0:03:02.2]} 3. Nxe5 {[%clk 0:02:58.8]} 3... Nxe4 {[%clk
0:03:03.6]} 4. Nc3 {[%clk 0:02:52.5]} 4... Qe7 {[%clk 0:03:03.3]} 5. Nxe4 {[%clk
0:02:47.8]} 5... Qxe5 {[%clk 0:03:04.2]} 6. Qe2 {[%clk 0:02:48.6]} 6... d5
{[%clk 0:03:04.9]} 7. Nc3 {[%clk 0:02:49.2]} 7... Qxe2+ {[%clk 0:03:02.9]} 8.
Bxe2 {[%clk 0:02:51.1]} 8... c6 {[%clk 0:03:04.4]} 9. d4 {[%clk 0:02:52.3]} 9...
Bd6 {[%clk 0:03:05.4]} 10. Be3 {[%clk 0:02:46.4]} 10... O-O {[%clk 0:03:05]} 11.
O-O-O {[%clk 0:02:46.6]} 11... f5 {[%clk 0:03:05.1]} 12. g3 {[%clk 0:02:06.7]}
12... f4 {[%clk 0:02:58.5]} 13. Bd2 {[%clk 0:02:01.1]} 13... Bh3 {[%clk
0:02:48.6]} 14. Bd3 {[%clk 0:01:04.9]} 14... Nd7 {[%clk 0:02:36.8]} 15. Ne2
{[%clk 0:00:30.9]} 15... Bg4 {[%clk 0:02:18.6]} 16. Rde1 {[%clk 0:00:21.6]}
16... fxg3 {[%clk 0:02:08.8]} 17. hxg3 {[%clk 0:00:17.1]} 17... g6 {[%clk
0:01:46.4]} 0-1

[Event "*** Titled Tuesday Blitz"]
[Site "Chess.com"]
[Date "2019.07.02"]
[Round "3"]
[White "julinha97"]
[Black "kasparicy"]
[Result "1-0"]
[WhiteElo "2228"]
[BlackElo "2327"]
[TimeControl "180+2"]
[EndTime "13:37:18 PDT"]
[Termination "julinha97 won by resignation"]

1. e4 {[%clk 0:03:01.9]} 1... c5 {[%clk 0:02:59.4]} 2. Nf3 {[%clk 0:03:02.7]}
2... d6 {[%clk 0:03:00.3]} 3. d4 {[%clk 0:03:04.1]} 3... cxd4 {[%clk 0:03:02.2]}
4. Nxd4 {[%clk 0:03:05.9]} 4... Nf6 {[%clk 0:03:02.7]} 5. Nc3 {[%clk 0:03:07.1]}
5... a6 {[%clk 0:03:03.3]} 6. Be3 {[%clk 0:03:05.3]} 6... e6 {[%clk 0:03:03]} 7.
g4 {[%clk 0:03:03]} 7... h6 {[%clk 0:03:00.2]} 8. h4 {[%clk 0:02:48.5]} 8... b5
{[%clk 0:03:00.7]} 9. a3 {[%clk 0:02:28.5]} 9... Bb7 {[%clk 0:02:59.2]} 10. Bg2
{[%clk 0:02:29.1]} 10... Nfd7 {[%clk 0:02:57.9]} 11. Qe2 {[%clk 0:02:26.3]}
11... Qc7 {[%clk 0:02:57.6]} 12. O-O-O {[%clk 0:02:23.7]} 12... Ne5 {[%clk
0:02:56.3]} 13. Nd5 {[%clk 0:02:04.6]} 13... exd5 {[%clk 0:02:55.6]} 14. exd5
{[%clk 0:02:06.5]} 14... Be7 {[%clk 0:02:50.7]} 15. f4 {[%clk 0:02:06.1]} 15...
Nc4 {[%clk 0:02:51]} 16. Nf5 {[%clk 0:02:06.9]} 16... g6 {[%clk 0:02:29.7]} 17.
Bd4 {[%clk 0:01:55.5]} 17... gxf5 {[%clk 0:02:09.4]} 18. Bxh8 {[%clk 0:01:54.1]}
18... Nd7 {[%clk 0:02:10.9]} 19. gxf5 {[%clk 0:01:52.2]} 19... O-O-O {[%clk
0:02:11]} 20. Qxe7 {[%clk 0:01:42]} 20... Rxh8 {[%clk 0:02:11]} 21. Qxf7 {[%clk
0:01:43.5]} 21... Rf8 {[%clk 0:02:10.2]} 22. Qe6 {[%clk 0:01:41.1]} 22... Ne3
{[%clk 0:02:00.7]} 23. Qxe3 {[%clk 0:01:39.2]} 23... Kb8 {[%clk 0:01:58.8]} 24.
Be4 {[%clk 0:01:36.1]} 24... Nf6 {[%clk 0:01:57.9]} 25. Qd4 {[%clk 0:01:31.5]}
25... Bc8 {[%clk 0:01:42.4]} 26. Bd3 {[%clk 0:01:28.5]} 26... Nd7 {[%clk
0:01:36.1]} 27. Rhg1 {[%clk 0:01:24.3]} 27... Nc5 {[%clk 0:01:37.1]} 28. Rg7
{[%clk 0:01:21.5]} 28... Rf7 {[%clk 0:01:38.4]} 29. Rxf7 {[%clk 0:01:21.6]}
29... Qxf7 {[%clk 0:01:40.3]} 30. f6 {[%clk 0:01:15.7]} 30... Qc7 {[%clk
0:01:35.1]} 31. Kb1 {[%clk 0:01:13.8]} 31... Bg4 {[%clk 0:01:36.4]} 32. Rg1
{[%clk 0:01:12.5]} 32... h5 {[%clk 0:01:38.3]} 33. Re1 {[%clk 0:01:13.1]} 1-0

[Event "*** Titled Tuesday Blitz"]
[Site "Chess.com"]
[Date "2019.07.02"]
[Round "3"]
[White "BAS8892"]
[Black "TheCavemanChesss"]
[Result "0-1"]
[WhiteElo "2604"]
[BlackElo "2424"]
[TimeControl "180+2"]
[EndTime "13:37:20 PDT"]
[Termination "TheCavemanChesss won by resignation"]

1. d4 {[%clk 0:03:00.8]} 1... d5 {[%clk 0:02:58.8]} 2. c4 {[%clk 0:03:01.5]}
2... dxc4 {[%clk 0:03:00.1]} 3. e4 {[%clk 0:03:01.4]} 3... b5 {[%clk 0:03:00.3]}
4. a4 {[%clk 0:03:02]} 4... c6 {[%clk 0:03:01.4]} 5. b3 {[%clk 0:03:00]} 5... e5
{[%clk 0:02:56.7]} 6. Nf3 {[%clk 0:03:00.6]} 6... Nf6 {[%clk 0:02:52.9]} 7. axb5
{[%clk 0:02:58]} 7... Nxe4 {[%clk 0:02:26.9]} 8. Bxc4 {[%clk 0:02:54.8]} 8...
Bb4+ {[%clk 0:02:20.8]} 9. Nbd2 {[%clk 0:02:55.2]} 9... Nc3 {[%clk 0:02:14]} 10.
Qc2 {[%clk 0:02:53.9]} 10... cxb5 {[%clk 0:02:15.3]} 11. Bxf7+ {[%clk 0:01:57]}
11... Kxf7 {[%clk 0:02:11.5]} 12. Nxe5+ {[%clk 0:01:57.9]} 12... Kg8 {[%clk
0:01:08.4]} 13. O-O {[%clk 0:01:58.1]} 13... Bb7 {[%clk 0:00:52.1]} 14. Re1
{[%clk 0:01:37.5]} 14... Qd5 {[%clk 0:00:39.1]} 15. Ndf3 {[%clk 0:01:35.6]}
15... Nc6 {[%clk 0:00:38.1]} 16. Nd3 {[%clk 0:01:27.9]} 16... Nxd4 {[%clk
0:00:32.6]} 17. Nxb4 {[%clk 0:01:28.7]} 17... Nxf3+ {[%clk 0:00:25.6]} 18. Kh1
{[%clk 0:01:29.6]} 18... Nxe1 {[%clk 0:00:20.6]} 19. Nxd5 {[%clk 0:01:25.1]}
19... Nxc2 {[%clk 0:00:21.7]} 20. Nxc3 {[%clk 0:01:26.3]} 20... Nxa1 {[%clk
0:00:22.9]} 21. f3 {[%clk 0:01:25.9]} 21... Nxb3 {[%clk 0:00:24]} 0-1

[Event "*** Titled Tuesday Blitz"]
[Site "Chess.com"]
[Date "2019.07.02"]
[Round "3"]
[White "Mykola-Bortnyk"]
[Black "Ceejay271"]
[Result "1-0"]
[WhiteElo "2916"]
[BlackElo "2178"]
[TimeControl "180+2"]
[EndTime "13:37:28 PDT"]
[Termination "Mykola-Bortnyk won by resignation"]

1. e4 {[%clk 0:03:01.9]} 1... e5 {[%clk 0:02:56.5]} 2. Nf3 {[%clk 0:03:02.6]}
2... Nf6 {[%clk 0:02:56.4]} 3. Nxe5 {[%clk 0:03:03.5]} 3... d6 {[%clk
0:02:57.2]} 4. Nxf7 {[%clk 0:03:05]} 4... Kxf7 {[%clk 0:02:57.9]} 5. d4 {[%clk
0:03:06.6]} 5... c5 {[%clk 0:02:58.5]} 6. Nc3 {[%clk 0:03:07.1]} 6... cxd4
{[%clk 0:02:42.1]} 7. Bc4+ {[%clk 0:03:08]} 7... Be6 {[%clk 0:02:41.3]} 8. Bxe6+
{[%clk 0:03:07.7]} 8... Kxe6 {[%clk 0:02:43.2]} 9. Qxd4 {[%clk 0:03:09.3]} 9...
Nc6 {[%clk 0:02:42.8]} 10. Qc4+ {[%clk 0:03:10.6]} 10... Kd7 {[%clk 0:02:43]}
11. Bf4 {[%clk 0:03:10.5]} 11... Qa5 {[%clk 0:02:21.8]} 12. O-O-O {[%clk
0:03:09.3]} 12... Ne5 {[%clk 0:02:16.6]} 13. Qb3 {[%clk 0:02:50.6]} 13... Kc6
{[%clk 0:01:45]} 14. Rd4 {[%clk 0:02:42]} 14... b5 {[%clk 0:01:23.9]} 15. Rhd1
{[%clk 0:02:34.5]} 15... Re8 {[%clk 0:01:07.2]} 16. a4 {[%clk 0:02:28.5]} 16...
a6 {[%clk 0:01:06.2]} 17. Rb4 {[%clk 0:02:13.3]} 17... Rb8 {[%clk 0:00:16.6]}
18. Nd5 {[%clk 0:02:04.8]} 18... Nxd5 {[%clk 0:00:10.1]} 19. Qxd5+ {[%clk
0:02:03.9]} 19... Kc7 {[%clk 0:00:10.5]} 20. c3 {[%clk 0:02:03.3]} 20... Be7
{[%clk 0:00:09.2]} 21. Bxe5 {[%clk 0:02:03.6]} 21... dxe5 {[%clk 0:00:07.3]} 22.
Qxe5+ {[%clk 0:02:05]} 22... Kb6 {[%clk 0:00:07.7]} 23. Qxe7 {[%clk 0:02:05.7]}
23... Rhc8 {[%clk 0:00:06.1]} 24. Rd6+ {[%clk 0:02:02.4]} 24... Rc6 {[%clk
0:00:06.4]} 25. Rbd4 {[%clk 0:02:01]} 25... Rc8 {[%clk 0:00:06.2]} 26. Qd7
{[%clk 0:01:57]} 1-0

[Event "*** Titled Tuesday Blitz"]
[Site "Chess.com"]
[Date "2019.07.02"]
[Round "3"]
[White "Micki-taryan"]
[Black "nubair1198"]
[Result "1-0"]
[WhiteElo "2957"]
[BlackElo "2669"]
[TimeControl "180+2"]
[EndTime "13:37:36 PDT"]
[Termination "Micki-taryan won by resignation"]

1. Nf3 {[%clk 0:03:01.9]} 1... Nf6 {[%clk 0:03:00.5]} 2. g3 {[%clk 0:03:03.4]}
2... g6 {[%clk 0:03:02.1]} 3. Bg2 {[%clk 0:03:03.9]} 3... Bg7 {[%clk 0:03:03.7]}
4. d4 {[%clk 0:03:05.5]} 4... d5 {[%clk 0:03:04.1]} 5. O-O {[%clk 0:03:06.5]}
5... O-O {[%clk 0:03:05.6]} 6. c3 {[%clk 0:03:06.7]} 6... Bf5 {[%clk 0:03:01.6]}
7. a4 {[%clk 0:03:07.1]} 7... a5 {[%clk 0:03:02]} 8. Nbd2 {[%clk 0:03:07.8]}
8... Nbd7 {[%clk 0:02:54.7]} 9. Nb3 {[%clk 0:03:08.5]} 9... Ne4 {[%clk
0:02:54.3]} 10. h3 {[%clk 0:03:06.1]} 10... c5 {[%clk 0:02:44.1]} 11. Nh4 {[%clk
0:03:04.6]} 11... Be6 {[%clk 0:02:39.6]} 12. Be3 {[%clk 0:03:05.5]} 12... Rc8
{[%clk 0:02:25.3]} 13. Kh2 {[%clk 0:03:03.5]} 13... c4 {[%clk 0:02:07.6]} 14.
Nd2 {[%clk 0:03:01.8]} 14... f5 {[%clk 0:02:09.1]} 15. Nhf3 {[%clk 0:03:01.6]}
15... Qb6 {[%clk 0:02:03.7]} 16. Rb1 {[%clk 0:03:01.4]} 16... h6 {[%clk
0:02:02.1]} 17. Nxe4 {[%clk 0:03:01]} 17... fxe4 {[%clk 0:02:02.7]} 18. Nd2
{[%clk 0:03:01.4]} 18... Qc7 {[%clk 0:01:56.9]} 19. b3 {[%clk 0:02:59.9]} 19...
cxb3 {[%clk 0:01:45.8]} 20. Rxb3 {[%clk 0:03:01.8]} 20... Nb6 {[%clk 0:01:38.6]}
21. Rb5 {[%clk 0:02:58.5]} 21... Bd7 {[%clk 0:01:35]} 22. Rc5 {[%clk 0:02:40]}
22... Qb8 {[%clk 0:01:35.3]} 23. Qb3 {[%clk 0:02:40.2]} 23... Nxa4 {[%clk
0:00:41.1]} 24. Qxd5+ {[%clk 0:02:36.2]} 24... Kh7 {[%clk 0:00:15.2]} 25. Qxd7
{[%clk 0:02:32.8]} 25... Nxc5 {[%clk 0:00:15.7]} 26. dxc5 {[%clk 0:02:34.7]}
26... Rfd8 {[%clk 0:00:09]} 27. Qa4 {[%clk 0:02:35.2]} 27... Bxc3 {[%clk
0:00:09.5]} 28. Nxe4 {[%clk 0:02:36.2]} 28... Bb4 {[%clk 0:00:09]} 29. Qa1
{[%clk 0:02:33.9]} 29... Rc6 {[%clk 0:00:08]} 30. h4 {[%clk 0:02:34.5]} 30...
Qc8 {[%clk 0:00:08.3]} 31. Bh3 {[%clk 0:02:35]} 31... Qc7 {[%clk 0:00:09.4]} 32.
Bf4 {[%clk 0:02:35.2]} 32... e5 {[%clk 0:00:09.6]} 33. Bxe5 {[%clk 0:02:36.6]}
33... Qe7 {[%clk 0:00:11.1]} 34. Nf6+ {[%clk 0:02:36.1]} 34... Rxf6 {[%clk
0:00:12]} 35. Bxf6 {[%clk 0:02:38]} 35... Qxe2 {[%clk 0:00:13.8]} 36. Bxd8
{[%clk 0:02:38.3]} 36... Bxc5 {[%clk 0:00:15.5]} 37. Qf6 {[%clk 0:02:38.5]} 1-0

[Event "*** Titled Tuesday Blitz"]
[Site "Chess.com"]
[Date "2019.07.02"]
[Round "3"]
[White "FairChess_on_YouTube"]
[Black "Airquake"]
[Result "1-0"]
[WhiteElo "3044"]
[BlackElo "2663"]
[TimeControl "180+2"]
[EndTime "13:37:38 PDT"]
[Termination "FairChess_on_YouTube won by resignation"]

1. Nf3 {[%clk 0:03:01.9]} 1... Nf6 {[%clk 0:02:57]} 2. c4 {[%clk 0:03:02.9]}
2... e6 {[%clk 0:02:57.2]} 3. g3 {[%clk 0:03:02.1]} 3... d5 {[%clk 0:02:56.4]}
4. d4 {[%clk 0:03:02.3]} 4... Be7 {[%clk 0:02:56]} 5. Bg2 {[%clk 0:03:03]} 5...
O-O {[%clk 0:02:54.7]} 6. O-O {[%clk 0:03:04.1]} 6... b6 {[%clk 0:02:56]} 7.
cxd5 {[%clk 0:03:01.4]} 7... exd5 {[%clk 0:02:57.9]} 8. Nc3 {[%clk 0:03:01]}
8... Bb7 {[%clk 0:02:59.1]} 9. Bf4 {[%clk 0:03:01.2]} 9... c5 {[%clk 0:02:58]}
10. Rc1 {[%clk 0:02:59.8]} 10... Qc8 {[%clk 0:02:38]} 11. Ne5 {[%clk 0:02:54.6]}
11... Rd8 {[%clk 0:02:38.4]} 12. Qa4 {[%clk 0:02:37.3]} 12... Nc6 {[%clk
0:02:20]} 13. e3 {[%clk 0:02:33.6]} 13... a6 {[%clk 0:02:11.1]} 14. dxc5 {[%clk
0:02:22.8]} 14... bxc5 {[%clk 0:01:59]} 15. Rfd1 {[%clk 0:02:23.6]} 15... Nxe5
{[%clk 0:01:55.6]} 16. Bxe5 {[%clk 0:02:24.5]} 16... d4 {[%clk 0:01:57.5]} 17.
Bxb7 {[%clk 0:02:18.9]} 17... Qxb7 {[%clk 0:01:54.6]} 18. exd4 {[%clk 0:02:20]}
18... Qxb2 {[%clk 0:01:48.3]} 19. d5 {[%clk 0:01:45.2]} 19... Qb4 {[%clk
0:01:40.1]} 20. d6 {[%clk 0:01:38.4]} 20... Bf8 {[%clk 0:01:30.8]} 21. Bxf6
{[%clk 0:01:34.3]} 21... gxf6 {[%clk 0:01:28.4]} 22. Qc6 {[%clk 0:01:26.9]}
22... Rac8 {[%clk 0:01:19]} 23. Qxa6 {[%clk 0:01:27.7]} 23... Ra8 {[%clk
0:01:05.3]} 24. Qc6 {[%clk 0:01:27.5]} 24... Rac8 {[%clk 0:01:06]} 25. Qf3
{[%clk 0:01:24.4]} 25... Rxd6 {[%clk 0:00:57.5]} 26. Rxd6 {[%clk 0:01:20.7]}
26... Bxd6 {[%clk 0:00:59.4]} 27. Ne4 {[%clk 0:01:21.9]} 27... Qb8 {[%clk
0:00:47]} 28. Nxd6 {[%clk 0:01:20.8]} 1-0

[Event "*** Titled Tuesday Blitz"]
[Site "Chess.com"]
[Date "2019.07.02"]
[Round "3"]
[White "guillembaches"]
[Black "sergeikim"]
[Result "1/2-1/2"]
[WhiteElo "2325"]
[BlackElo "2482"]
[TimeControl "180+2"]
[EndTime "13:37:45 PDT"]
[Termination "Game drawn by repetition"]

1. e4 {[%clk 0:03:01.9]} 1... e5 {[%clk 0:03:00.5]} 2. Nf3 {[%clk 0:03:02.9]}
2... Nc6 {[%clk 0:03:01.4]} 3. Nc3 {[%clk 0:03:04.4]} 3... Nf6 {[%clk
0:03:01.8]} 4. d4 {[%clk 0:03:05.7]} 4... exd4 {[%clk 0:03:02.8]} 5. Nxd4 {[%clk
0:03:07.6]} 5... Bb4 {[%clk 0:03:03.4]} 6. Nxc6 {[%clk 0:03:08.8]} 6... bxc6
{[%clk 0:03:04.5]} 7. Bd3 {[%clk 0:03:09.8]} 7... d5 {[%clk 0:03:05.4]} 8. Bd2
{[%clk 0:03:07.7]} 8... O-O {[%clk 0:02:58.1]} 9. O-O {[%clk 0:03:08.1]} 9...
Bxc3 {[%clk 0:02:53.5]} 10. Bxc3 {[%clk 0:03:09.1]} 10... Nxe4 {[%clk
0:02:54.5]} 11. Bxe4 {[%clk 0:03:09.8]} 11... dxe4 {[%clk 0:02:55]} 12. Qe2
{[%clk 0:03:11]} 12... Bf5 {[%clk 0:02:41.5]} 13. Rad1 {[%clk 0:03:09.1]} 13...
Qg5 {[%clk 0:02:36.9]} 14. Qe3 {[%clk 0:03:09.9]} 14... Qxe3 {[%clk 0:02:34.4]}
15. fxe3 {[%clk 0:03:11.8]} 15... Be6 {[%clk 0:02:35.4]} 16. Rd4 {[%clk
0:02:56.2]} 16... f5 {[%clk 0:02:28.5]} 17. Rfd1 {[%clk 0:02:56.6]} 17... Rab8
{[%clk 0:02:13.8]} 18. g3 {[%clk 0:02:50.9]} 18... Rb5 {[%clk 0:02:00.4]} 19.
Kf2 {[%clk 0:02:42.1]} 19... Rd5 {[%clk 0:01:58.3]} 20. b3 {[%clk 0:02:12.6]}
20... Rfd8 {[%clk 0:01:54.4]} 21. Bb2 {[%clk 0:02:13.3]} 21... Kf7 {[%clk
0:01:38.8]} 22. c4 {[%clk 0:02:12.5]} 22... Rxd4 {[%clk 0:01:37.7]} 23. Rxd4
{[%clk 0:02:12.9]} 23... Rb8 {[%clk 0:01:32.7]} 24. Ba3 {[%clk 0:02:10.9]} 24...
a5 {[%clk 0:01:29.2]} 25. Bc5 {[%clk 0:02:08]} 25... g5 {[%clk 0:01:27]} 26. Rd2
{[%clk 0:02:01.1]} 26... a4 {[%clk 0:01:25.4]} 27. b4 {[%clk 0:01:59.5]} 27...
Bxc4 {[%clk 0:01:25.4]} 28. Rd7+ {[%clk 0:01:57.3]} 28... Ke6 {[%clk 0:01:25.8]}
29. Re7+ {[%clk 0:01:57.7]} 29... Kf6 {[%clk 0:01:21.8]} 30. Rxc7 {[%clk
0:01:41.5]} 30... Bxa2 {[%clk 0:01:17.1]} 31. Rxc6+ {[%clk 0:01:42.1]} 31... Kf7
{[%clk 0:01:15.8]} 32. Ra6 {[%clk 0:01:40.2]} 32... Bb3 {[%clk 0:01:14.5]} 33.
h4 {[%clk 0:01:35]} 33... gxh4 {[%clk 0:01:11.2]} 34. gxh4 {[%clk 0:01:35.7]}
34... Rd8 {[%clk 0:01:10.6]} 35. Bd4 {[%clk 0:01:31.6]} 35... Rc8 {[%clk
0:01:09.4]} 36. Bc5 {[%clk 0:01:31.7]} 36... Rd8 {[%clk 0:01:10.3]} 37. Bd4
{[%clk 0:01:32.7]} 37... Rc8 {[%clk 0:01:11.3]} 38. Bc5 {[%clk 0:01:33.7]} 38...
Rd8 {[%clk 0:01:12.1]} 1/2-1/2